fUSD/lending_fUSD_20250301
["ID","MTS","AMOUNT","RATE_DAILY","PERIOD"]
[354976188,1740852646602,-3470.53647137,0.00025477,2]
[354976191,1740852646614,-632.88971334,0.00025477,2]
[354976193,1740852646633,-2411.95686981,0.00025477,2]
[354976196,1740852646643,-363.98313784,0.00025477,2]
[354976198,1740852646655,-136.01686216,0.00025477,2]
[354976200,1740852646665,-500.0,0.00025477,2]
[354976202,1740852646674,-2362.98,0.00025477,2]
[354976204,1740852646683,-500.0,0.00025477,2]
[354976206,1740852646693,-500.0,0.00025477,2]
[354976208,1740852646702,-500.0,0.00025477,2]
[354976211,1740852646711,-500.0,0.00025477,2]
[354976214,1740852646721,-500.0,0.00025477,2]
[354976216,1740852646730,-187.27303296,0.00025477,2]
[354976218,1740852646741,-1282.9960834,0.00025477,2]
[354976220,1740852646756,-944.63503,0.00025477,2]
[354976271,1740852647226,-275.98042131,0.00025477,2]
[354976367,1740852648186,-823.32543233,0.00025477,2]
[354976369,1740852648197,-939.43,0.00025477,2]
[354976371,1740852648208,-1122.87,0.00025477,2]
[354976373,1740852648218,-11895.94,0.00025477,2]
[354976375,1740852648228,-500.0,0.00025477,2]
[354976377,1740852648243,-500.0,0.00025477,2]
[354976379,1740852648253,-500.0,0.00025477,2]
[354976381,1740852648264,-783.95,0.00025477,2]
[354976383,1740852648276,-863.31,0.00025477,2]
[354976385,1740852648287,-500.0,0.00025477,2]
[354976387,1740852648297,-7913.22,0.00025477,2]
[354976389,1740852648309,-500.0,0.00025478,2]
[354976391,1740852648319,-510.51,0.00025478,2]
[354976393,1740852648330,-500.0,0.00025478,2]
[354976395,1740852648341,-500.0,0.00025478,2]
[354976397,1740852648351,-500.0,0.00025478,2]
[354976399,1740852648362,-500.0,0.00025478,2]
[354976401,1740852648372,-500.0,0.00025478,2]
[354976403,1740852648383,-544.06,0.00025478,2]
[354976405,1740852648394,-500.0,0.00025478,2]
[354976407,1740852648406,-500.0,0.00025478,2]
[354976409,1740852648417,-500.0,0.00025478,2]
[354976411,1740852648428,-500.0,0.00025478,2]
[354976413,1740852648439,-649.2,0.00025478,2]
[354976415,1740852648450,-500.0,0.00025478,2]
[354976417,1740852648460,-500.0,0.00025478,2]
[354976419,1740852648471,-11.28623063,0.00025478,2]
[354976421,1740852648484,-445.93234517,0.00025478,2]
[354976424,1740852648503,-42.7814242,0.00025478,2]
[354976426,1740852648514,-537.46,0.00025478,2]
[354976428,1740852648525,-500.0,0.00025478,2]
[354976430,1740852648536,-500.0,0.00025478,2]
[354976432,1740852648547,-500.0,0.00025478,2]
[354976434,1740852648558,-555.66,0.00025478,2]
[354976436,1740852648569,-500.0,0.00025478,2]
[354976438,1740852648580,-500.0,0.00025478,2]
[354976440,1740852648591,-500.0,0.00025478,2]
[354976442,1740852648602,-500.0,0.00025478,2]
[354976444,1740852648614,-624.07,0.00025478,2]
[354976446,1740852648626,-500.0,0.00025478,2]
[354976447,1740852648638,-500.0,0.00025478,2]
[354976448,1740852648649,-500.0,0.00025478,2]
[354976449,1740852648660,-182.42799351,0.00025478,2]
[354976450,1740852648673,-317.57200649,0.00025478,2]
[354976451,1740852648684,-1056.65,0.00025478,2]
[354976452,1740852648694,-581.27,0.00025478,2]
[354976453,1740852648705,-655.36,0.00025478,2]
[354976454,1740852648715,-651.03,0.00025478,2]
[354976455,1740852648726,-500.0,0.00025478,2]
[354976456,1740852648737,-891.38,0.00025478,2]
[354976457,1740852648748,-500.0,0.00025478,2]
[354976458,1740852648758,-574.95,0.00025478,2]
[354976459,1740852648769,-500.0,0.00025478,2]
[354976460,1740852648780,-500.0,0.00025478,2]
[354976461,1740852648790,-828.49,0.00025478,2]
[354976462,1740852648801,-854.71,0.00025478,2]
[354976463,1740852648812,-500.0,0.00025478,2]
[354976464,1740852648823,-500.0,0.00025478,2]
[354976465,1740852648834,-500.0,0.00025478,2]
[354976466,1740852648845,-500.0,0.00025478,2]
[354976467,1740852648855,-500.0,0.00025478,2]
[354976468,1740852648865,-664.72,0.00025478,2]
[354976469,1740852648876,-687.97,0.00025478,2]
[354976470,1740852648887,-894.92,0.00025478,2]
[354976471,1740852648898,-500.0,0.00025478,2]
[354976472,1740852648908,-500.0,0.00025478,2]
[354976473,1740852648919,-603.74,0.00025478,2]
[354976474,1740852648929,-500.0,0.00025478,2]
[354976475,1740852648940,-500.0,0.00025478,2]
[354976476,1740852648951,-500.0,0.00025478,2]
[354976477,1740852648963,-500.0,0.00025478,2]
[354976478,1740852648973,-500.0,0.00025478,2]
[354976479,1740852648984,-500.0,0.00025478,2]
[354976480,1740852648995,-500.0,0.00025478,2]
[354976481,1740852649006,-513.89,0.00025478,2]
[354976482,1740852649016,-558.87,0.00025478,2]
[354976483,1740852649027,-500.0,0.00025478,2]
[354976484,1740852649038,-500.0,0.00025478,2]
[354976485,1740852649049,-500.0,0.00025478,2]
[354976486,1740852649060,-905.08,0.00025478,2]
[354976487,1740852649070,-500.0,0.00025478,2]
[354976488,1740852649081,-533.1,0.00025478,2]
[354976489,1740852649092,-764.71,0.00025478,2]
[354976490,1740852649102,-700.73,0.00025478,2]
[354976491,1740852649113,-701.35,0.00025478,2]
[354976492,1740852649124,-642.27,0.00025478,2]
[354976493,1740852649135,-639.26,0.00025478,2]
[354976494,1740852649146,-500.0,0.00025478,2]
[354976495,1740852649156,-621.34,0.00025478,2]
[354976496,1740852649166,-500.0,0.00025478,2]
[354976497,1740852649177,-500.0,0.00025478,2]
[354976498,1740852649188,-500.0,0.00025478,2]
[354976499,1740852649199,-500.0,0.00025478,2]
[354976500,1740852649209,-776.73,0.00025478,2]
[354976501,1740852649220,-561.08,0.00025478,2]
[354976502,1740852649231,-725.53,0.00025478,2]
[354976503,1740852649244,-553.95,0.00025478,2]
[354976504,1740852649254,-500.0,0.00025478,2]
[354976505,1740852649264,-500.0,0.00025478,2]
[354976506,1740852649276,-691.21,0.00025478,2]
[354976507,1740852649286,-500.0,0.00025478,2]
[354976508,1740852649297,-500.0,0.00025478,2]
[354976509,1740852649307,-669.63,0.00025478,2]
[354976510,1740852649321,-500.0,0.00025478,2]
[354976511,1740852649332,-513.50799351,0.00025478,2]
[354976512,1740852649346,-414.54200649,0.00025478,2]
[354976513,1740852649357,-561.86,0.00025478,2]
[354976514,1740852649368,-1177.04,0.00025478,2]
[354976515,1740852649378,-626.05,0.00025478,2]
[354976516,1740852649389,-500.0,0.00025478,2]
[354976517,1740852649400,-500.0,0.00025478,2]
[354976518,1740852649411,-670.25,0.00025478,2]
[354976519,1740852649422,-1682.65063371,0.00025478,2]
[354976520,1740852649435,-478.18936629,0.00025478,2]
[354976521,1740852649446,-533.10913375,0.00025478,2]
[354976522,1740852649459,-877.95086625,0.00025478,2]
[354976523,1740852649469,-12.62511375,0.00025478,2]
[354976524,1740852649482,-843.02488625,0.00025478,2]
[354976525,1740852649492,-109.73792965,0.00025478,2]
[354976526,1740852649504,-1003.531125,0.00025478,2]
[354976527,1740852649517,-306.72094535,0.00025478,2]
[354976528,1740852649528,-500.0,0.00025478,2]
[354976529,1740852649538,-111.41559965,0.00025478,2]
[354976530,1740852649551,-619.26440035,0.00025478,2]
[354976531,1740852649561,-387.41559965,0.00025478,2]
[354976532,1740852649574,-137.95440035,0.00025478,2]
[354976533,1740852649584,-500.0,0.00025478,2]
[354976534,1740852649595,-292.40559965,0.00025478,2]
[354976535,1740852649609,-418.33440035,0.00025478,2]
[354976537,1740852649620,-500.0,0.00025478,2]
[354976539,1740852649630,-155.16559965,0.00025478,2]
[354976541,1740852649643,-546.38440035,0.00025478,2]
[354976543,1740852649654,-436.06559965,0.00025478,120]
[354976545,1740852649666,-63.93440035,0.00025478,120]
[354976547,1740852649676,-790.96,0.00025478,2]
[354976549,1740852649687,-181.82559965,0.00025478,2]
[354976551,1740852649699,-892.15440035,0.00025478,2]
[354976553,1740852649709,-228.99059965,0.00025478,2]
[354976555,1740852649722,-707.62940035,0.00025478,2]
[354976557,1740852649732,-421.23034735,0.00025478,2]
[354976559,1740852649743,-458.44251436,0.00025478,2]
[354976562,1740852649756,-54.67713829,0.00025478,2]
[354976564,1740852649766,-500.0,0.00025478,2]
[354976566,1740852649776,-181.23786171,0.00025478,2]
[354976568,1740852649789,-857.88213829,0.00025478,2]
[354976570,1740852649799,-595.2,0.00025478,2]
[354976572,1740852649810,-461.9514222,0.00025478,2]
[354976574,1740852649822,-398.0385778,0.00025478,2]
[354976576,1740852649833,-1035.91,0.00025478,2]
[354976578,1740852649843,-500.0,0.00025478,2]
[354976580,1740852649854,-545.92,0.00025478,2]
[354976582,1740852649865,-500.0,0.00025478,2]
[354976584,1740852649875,-1739.65,0.00025478,2]
[354976586,1740852649885,-500.0,0.00025478,2]
[354976588,1740852649896,-500.0,0.00025478,2]
[354976590,1740852649906,-500.0,0.00025478,2]
[354976592,1740852649916,-500.0,0.00025478,2]
[354976594,1740852649926,-500.0,0.00025478,2]
[354976596,1740852649936,-744.23,0.00025478,2]
[354976598,1740852649947,-500.0,0.00025478,2]
[354976600,1740852649957,-712.35,0.00025478,2]
[354976601,1740852649967,-150.0,0.00025478,2]
[354976603,1740852649979,-966.5,0.00025479,10]
[354976606,1740852649990,-455.39571974,0.00025569,2]
[354976608,1740852650000,-161.35,0.00025579,2]
[354976609,1740852650011,-299.63353444,0.00025619,2]
[354976612,1740852650022,-179.53321113,0.0002565,2]
[354976614,1740852650032,-786.06,0.00025749,2]
[354976616,1740852650043,-810.0,0.00025749,2]
[354976618,1740852650053,-613.99,0.00025749,2]
[354976620,1740852650064,-957.96,0.00025749,2]
[354976622,1740852650074,-500.0,0.00025749,2]
[354976624,1740852650083,-550.43,0.00025749,2]
[354976626,1740852650095,-1177.53,0.00025749,2]
[354976628,1740852650106,-925.65,0.00025749,2]
[354976630,1740852650116,-1209.33,0.00025749,2]
[354976632,1740852650126,-810.01,0.00025749,2]
[354976634,1740852650136,-500.0,0.00025749,2]
[354976636,1740852650146,-597.35,0.00025749,2]
[354976638,1740852650156,-763.36,0.00025749,2]
[354976640,1740852650166,-737.35,0.00025749,2]
[354976642,1740852650177,-519.93,0.00025749,2]
[354976644,1740852650188,-2620.35,0.00025749,2]
[354976646,1740852650199,-500.0,0.00025749,2]
[354976648,1740852650211,-500.0,0.00025749,2]
[354976650,1740852650222,-500.0,0.00025749,2]
[354976652,1740852650232,-1031.75,0.00025749,2]
[354976654,1740852650246,-1749.99,0.00025749,2]
[354976655,1740852650256,-1624.188534,0.00025749,2]
[354976657,1740852650267,-5359.18,0.00025749,2]
[354976659,1740852650279,-500.0,0.00025749,2]
[354976661,1740852650290,-500.0,0.00025749,2]
[354976663,1740852650302,-757.71,0.00025749,2]
[354976666,1740852650313,-638.35,0.00025749,2]
[354976691,1740852650575,-755.46,0.00025749,2]
[354976694,1740852650600,-744.29,0.00025749,2]
[354976696,1740852650611,-808.15,0.00025749,2]
[354976698,1740852650621,-500.0,0.0002575,2]
[354976700,1740852650632,-500.0,0.0002575,2]
[354976702,1740852650642,-79.61502288,0.0002575,2]
[354976705,1740852650656,-420.38497712,0.0002575,2]
[354976707,1740852650673,-500.0,0.0002575,2]
[354976709,1740852650684,-554.4,0.0002575,2]
[354976711,1740852650694,-500.0,0.0002575,2]
[354976713,1740852650705,-500.0,0.0002575,2]
[354976715,1740852650715,-500.0,0.0002575,2]
[354976717,1740852650725,-653.26,0.0002575,2]
[354976719,1740852650735,-500.0,0.0002575,2]
[354976721,1740852650745,-588.39,0.0002575,2]
[354976723,1740852650756,-937.75,0.0002575,2]
[354976725,1740852650766,-500.0,0.0002575,2]
[354976727,1740852650776,-500.0,0.0002575,2]
[354976729,1740852650786,-500.0,0.0002575,2]
[354976731,1740852650797,-500.0,0.0002575,2]
[354976732,1740852650807,-500.0,0.0002575,2]
[354976735,1740852650817,-500.0,0.0002575,2]
[354976736,1740852650827,-500.0,0.0002575,2]
[354976738,1740852650837,-500.0,0.0002575,2]
[354976740,1740852650847,-500.0,0.0002575,2]
[354976742,1740852650857,-500.0,0.0002575,2]
[354976744,1740852650866,-555.85,0.0002575,2]
[354976746,1740852650876,-598.15,0.0002575,2]
[354976748,1740852650886,-500.0,0.0002575,2]
[354976750,1740852650897,-500.0,0.0002575,2]
[354976753,1740852650906,-440.41502285,0.0002575,2]
[354976755,1740852650925,-308.12497715,0.0002575,2]
[354976757,1740852650935,-500.0,0.0002575,2]
[354976759,1740852650946,-500.0,0.0002575,2]
[354976761,1740852650956,-500.0,0.0002575,2]
[354976763,1740852650966,-500.0,0.0002575,2]
[354976765,1740852650976,-500.0,0.0002575,2]
[354976767,1740852650986,-500.0,0.0002575,2]
[354976769,1740852650996,-500.0,0.0002575,2]
[354976771,1740852651007,-500.0,0.0002575,2]
[354976773,1740852651017,-500.0,0.0002575,2]
[354976775,1740852651027,-500.0,0.0002575,2]
[354976777,1740852651037,-500.0,0.0002575,2]
[354976779,1740852651048,-500.0,0.0002575,2]
[354976781,1740852651059,-500.0,0.0002575,2]
[354976782,1740852651070,-500.0,0.0002575,2]
[354976783,1740852651080,-851.7,0.0002575,2]
[354976784,1740852651091,-500.0,0.0002575,2]
[354976785,1740852651102,-500.0,0.0002575,2]
[354976786,1740852651112,-577.84,0.0002575,2]
[354976787,1740852651122,-500.0,0.0002575,2]
[354976788,1740852651132,-516.88,0.0002575,2]
[354976789,1740852651143,-533.1,0.0002575,2]
[354976790,1740852651154,-500.0,0.0002575,2]
[354976791,1740852651165,-500.0,0.0002575,2]
[354976792,1740852651176,-500.0,0.0002575,2]
[354976793,1740852651186,-500.0,0.0002575,2]
[354976794,1740852651198,-656.01,0.0002575,2]
[354976795,1740852651207,-125.34502283,0.0002575,2]
[354977732,1740853508550,49750.0,0.00015,2]
[354977840,1740853831559,-179.3,0.0001499,2]
[354977841,1740853831568,-179.3,0.0001499,2]
[354977842,1740853831578,-619.54903293,0.00014999,2]
[354977843,1740853831588,-65.63329884,0.00015,2]
[354978070,1740853839864,-315104.74770702,0.00015,2]
[354978640,1740853845647,-805.025151,0.00015,2]
[354979041,1740854033185,-850.0,0.00015,2]
[354979043,1740854310376,773.2,0.000147,2]
[354979046,1740854547505,-300.0,0.00014999,2]
[354979047,1740854547534,-22700.0,0.00015,2]
[354979048,1740854569536,-50000.0,0.00015,2]
[354979049,1740854570677,-50000.0,0.00015,2]
[354979050,1740854575434,-50000.0,0.00015,2]
[354979051,1740854579680,-19000.0,0.00015,2]
[354979105,1740854987432,-509.38950986,0.00014999,2]
[354979106,1740854987457,-9490.61049014,0.00015,2]
[354979107,1740854987926,-10000.0,0.00015,2]
[354979108,1740854988319,-10000.0,0.00015,2]
[354979109,1740854988835,-10000.0,0.00015,2]
[354979110,1740854989063,-10000.0,0.00015,2]
[354979111,1740854989433,-10000.0,0.00015,2]
[354979112,1740854989786,-10000.0,0.00015,2]
[354979113,1740854990173,-10000.0,0.00015,2]
[354979114,1740854990515,-10000.0,0.00015,2]
[354979115,1740854990883,-10000.0,0.00015,2]
[354979116,1740854991246,-10000.0,0.00015,2]
[354979117,1740854991607,-10000.0,0.00015,2]
[354979118,1740854991975,-10000.0,0.00015,2]
[354979119,1740854992442,-10000.0,0.00015,2]
[354979120,1740854993516,-10000.0,0.00015,2]
[354979121,1740854994035,-10000.0,0.00015,2]
[354979122,1740854994877,-10000.0,0.00015,2]
[354979123,1740854995947,-10000.0,0.00015,2]
[354979128,1740855002654,-7335.0,0.00015,2]
[354979133,1740855031691,-1211.0805704,0.00015,2]
[354979134,1740855031707,-237151.9280814,0.00015,2]
[354979135,1740855031732,-20611.40069932,0.00015,2]
[354979136,1740855031875,-2192.34805643,0.00015,2]
[354979170,1740855037609,-2879.06424623,0.00015,2]
[354979171,1740855037621,-8497.8,0.00015,2]
[354979365,1740855039901,-927.09281741,0.00015,2]
[354979367,1740855039910,-497.42908,0.00015,2]
[354979369,1740855039920,-1315.27584863,0.000172,2]
[354979371,1740855039930,-232.19341386,0.000173,2]
[354979373,1740855039939,-311.47647461,0.000179,2]
[354979375,1740855039949,-385.65275734,0.00018311,2]
[354979382,1740855040010,-929.62309123,0.00018311,2]
[354979384,1740855040020,-232.19341385,0.000184,2]
[354979386,1740855040034,-217.15856995,0.00019003,2]
[354979970,1740855045749,-94.31790462,0.00019003,2]
[354979972,1740855045759,-1315.27584857,0.00019422,2]
[354979974,1740855045769,-232.19341385,0.00019499,2]
[354979976,1740855045779,-375.56,0.00019912,2]
[354979978,1740855045790,-125.49310625,0.0002,2]
[354980003,1740855046019,-876.59889385,0.0002,2]
[354980005,1740855046032,-1721.04869957,0.0002,2]
[354980007,1740855046042,-497.42909,0.0002,2]
[354980009,1740855046052,-311.47647457,0.00020107,2]
[354980011,1740855046061,-870.40332772,0.00020532,2]
[354980724,1740855286928,-331.61939,0.00020532,2]
[354980725,1740855286951,-150.0,0.00020871,2]
[354980726,1740855286973,-8518.38061,0.000214,2]
[354981074,1740856231932,-300.0,0.00020551,2]
[354981075,1740856231942,-150.0,0.00020551,2]
[354981076,1740856231952,-525.63086824,0.00020552,2]
[354981077,1740856232042,-309.30913176,0.00020552,2]
[354981078,1740856232051,-227.40073558,0.00020552,2]
[354981121,1740856237788,-1476.42,0.00020552,2]
[354981122,1740856237800,-555.26247137,0.00020552,2]
[354981123,1740856237843,-810.06699986,0.00020552,2]
[354981124,1740856237899,-6586.29727959,0.00020552,2]
[354981125,1740856237911,-3785.29063338,0.00020552,2]
[354981126,1740856237923,-424.538785,0.00020552,2]
[354981127,1740856237935,-76928.72037272,0.00020552,2]
[354981128,1740856237945,-300.0,0.00021398,2]
[354981129,1740856237955,-167.91283939,0.00021399,2]
[354981130,1740856237964,-1858.60022662,0.000214,2]
[354981131,1740856237973,-213.62092874,0.000214,2]
[354981132,1740856237983,-27658.12043798,0.000214,2]
[354981133,1740856237993,-707.86147,0.000214,2]
[354981134,1740856238002,-1822.0,0.000218,2]
[354981135,1740856238012,-179.88,0.00021918,2]
[354981136,1740856238022,-1080.23,0.00022391,2]
[354981137,1740856238032,-250.0,0.00022468,2]
[354981138,1740856238041,-150.0,0.00022505,7]
[354981139,1740856238052,-1080.23,0.00022508,2]
[354981140,1740856238063,-3488.74678336,0.00022535,2]
[354981141,1740856238080,-405.17512303,0.00022535,2]
[354981142,1740856238092,-1629.83238255,0.00022535,2]
[354981143,1740856238114,-22469.07571106,0.00022535,2]
[354981144,1740856238124,-441.0,0.000226,2]
[354981145,1740856238135,-441.0,0.000226,2]
[354981146,1740856238146,-441.0,0.000226,2]
[354981147,1740856238156,-150.0,0.00022606,2]
[354981148,1740856238166,-1080.23,0.00022626,2]
[354981149,1740856238177,-1238.26,0.00022675,2]
[354981151,1740856238186,-182.79,0.00022706,2]
[354981153,1740856238197,-1080.23,0.00022744,2]
[354981155,1740856238207,-401.9,0.00022786,2]
[354981158,1740856238221,-150.0,0.000228,2]
[354981160,1740856238231,-439.97,0.000228,2]
[354981162,1740856238240,-9753.67329321,0.00022814,2]
[354981164,1740856238253,-14146.32670679,0.00022814,2]
[354981166,1740856238262,-834.94,0.00022816,2]
[354981168,1740856238272,-200.0,0.00022855,2]
[354981170,1740856238281,-1080.23,0.00022862,2]
[354981173,1740856238292,-307.51775263,0.000229,3]
[354981176,1740856238303,-150.0,0.00022918,2]
[354981179,1740856238314,-441.0,0.00022923,2]
[354981181,1740856238324,-1080.23,0.0002298,2]
[354981183,1740856238334,-1000.0,0.00022985,2]
[354981185,1740856238344,-29925.0,0.00023,2]
[354981187,1740856238354,-500.0,0.0002306,2]
[354981189,1740856238364,-1080.23,0.00023098,2]
[354981191,1740856238373,-694.87,0.00023169,2]
[354981193,1740856238384,-1080.23,0.00023215,2]
[354981195,1740856238394,-379.05,0.00023217,2]
[354981197,1740856238404,-150.0,0.00023234,2]
[354981199,1740856238414,-356.93,0.00023327,2]
[354981201,1740856238426,-1080.23,0.00023333,2]
[354981203,1740856238437,-1080.23,0.00023451,2]
[354981205,1740856238447,-150.0,0.00023539,2]
[354981207,1740856238457,-1080.23,0.00023569,2]
[354981209,1740856238470,-1080.23,0.00023687,2]
[354981211,1740856238480,-1080.23,0.00023805,2]
[354981213,1740856238489,-307.51775255,0.00023831,3]
[354981215,1740856238500,-199.41,0.00023836,2]
[354981217,1740856238510,-182.79,0.00023842,2]
[354981219,1740856238519,-156.24,0.00023882,2]
[354981221,1740856238529,-150.0,0.000239,2]
[354981223,1740856238539,-1080.23,0.00023922,2]
[354981225,1740856238549,-1080.23,0.0002404,2]
[354981227,1740856238560,-153.78,0.00024109,2]
[354981229,1740856238570,-2030.0,0.00024145,2]
[354981231,1740856238580,-639.0,0.00024145,2]
[354981233,1740856238590,-398.058,0.00024145,2]
[354981235,1740856238600,-911.0,0.00024145,2]
[354981237,1740856238610,-785.0,0.00024145,2]
[354981239,1740856238620,-662.394,0.00024145,2]
[354981241,1740856238629,-913.138,0.00024145,2]
[354981243,1740856238641,-1428.537,0.00024145,2]
[354981245,1740856238651,-1267.0,0.00024145,2]
[354981247,1740856238660,-4038.0,0.00024145,2]
[354981249,1740856238670,-150.0,0.00024145,2]
[354981251,1740856238680,-487.213,0.00024145,2]
[354981253,1740856238690,-3917.0,0.00024145,2]
[354981255,1740856238699,-1112.0,0.00024145,2]
[354981257,1740856238709,-1080.23,0.00024158,2]
[354981259,1740856238719,-1080.23,0.00024276,2]
[354981262,1740856238740,-1080.23,0.00024394,2]
[354981264,1740856238751,-153.78,0.00024453,2]
[354981266,1740856238761,-1080.23,0.00024512,2]
[354981268,1740856238771,-2168.44057825,0.00024557,2]
[354981270,1740856238782,-314.11624947,0.00024557,2]
[354981272,1740856238792,-1080.23,0.00024629,2]
[354981274,1740856238802,-151.0,0.00024657,7]
[354981276,1740856238811,-500.0,0.00024657,2]
[354981278,1740856238821,-151.0,0.00024657,7]
[354981280,1740856238831,-500.0,0.00024657,2]
[354981282,1740856238840,-151.0,0.00024657,7]
[354981284,1740856238850,-500.0,0.00024657,2]
[354981286,1740856238860,-500.0,0.00024657,2]
[354981288,1740856238870,-500.0,0.00024657,2]
[354981291,1740856238880,-152.03692,0.00024657,7]
[354981293,1740856238891,-151.0,0.00024657,7]
[354981295,1740856238901,-151.0,0.00024657,7]
[354981297,1740856238911,-500.0,0.00024657,2]
[354981299,1740856238921,-151.0,0.00024657,7]
[354981301,1740856238931,-500.0,0.00024657,2]
[354981303,1740856238941,-500.0,0.00024657,2]
[354981305,1740856238951,-500.0,0.00024657,2]
[354981307,1740856238961,-500.0,0.00024657,2]
[354981309,1740856238970,-500.0,0.00024657,2]
[354981311,1740856238980,-152.851359,0.00024657,7]
[354981313,1740856238990,-151.0,0.00024657,7]
[354981315,1740856239000,-151.0,0.00024657,7]
[354981317,1740856239010,-199.191611,0.00024657,7]
[354981319,1740856239019,-500.0,0.00024657,2]
[354981321,1740856239029,-199.191611,0.00024657,7]
[354981323,1740856239039,-595.1,0.00024657,2]
[354981325,1740856239050,-151.763023,0.00024657,7]
[354981327,1740856239059,-151.0,0.00024657,7]
[354981329,1740856239069,-151.0,0.00024657,7]
[354981331,1740856239079,-500.0,0.00024657,2]
[354981333,1740856239090,-500.0,0.00024657,2]
[354981335,1740856239100,-407.11082,0.00024657,7]
[354981337,1740856239110,-407.11082,0.00024657,7]
[354981339,1740856239119,-151.0,0.00024657,7]
[354981341,1740856239129,-500.0,0.00024657,2]
[354981343,1740856239140,-151.0,0.00024657,7]
[354981345,1740856239151,-688.77,0.00024657,2]
[354981348,1740856239162,-500.0,0.00024657,2]
[354981350,1740856239171,-500.0,0.00024657,2]
[354981352,1740856239182,-151.0,0.00024657,7]
[354981354,1740856239192,-151.0,0.00024657,7]
[354981356,1740856239202,-242.978363,0.00024657,7]
[354981358,1740856239212,-500.0,0.00024657,2]
[354981360,1740856239227,-500.0,0.00024657,2]
[354981362,1740856239238,-509.36,0.00024657,2]
[354981364,1740856239248,-378.525501,0.00024657,7]
[354981366,1740856239259,-378.525501,0.00024657,7]
[354981368,1740856239270,-623.3,0.00024657,2]
[354981370,1740856239280,-500.0,0.00024657,2]
[354981372,1740856239291,-631.28,0.00024657,2]
[354981375,1740856239302,-500.0,0.00024657,2]
[354981377,1740856239312,-500.0,0.00024657,2]
[354981379,1740856239323,-500.0,0.00024657,2]
[354981381,1740856239334,-500.0,0.00024657,2]
[354981383,1740856239344,-632.43,0.00024657,2]
[354981385,1740856239355,-500.0,0.00024657,2]
[354981387,1740856239365,-500.0,0.00024657,2]
[354981389,1740856239375,-153.088695,0.00024657,2]
[354981391,1740856239386,-663.0,0.00024657,2]
[354981393,1740856239396,-1421.164967,0.00024657,2]
[354981395,1740856239406,-150.369306,0.00024657,2]
[354981397,1740856239417,-532.83,0.00024657,2]
[354981399,1740856239432,-500.0,0.00024657,2]
[354981401,1740856239442,-661.03,0.00024657,2]
[354981403,1740856239452,-500.0,0.00024657,2]
[354981405,1740856239464,-500.0,0.00024657,2]
[354981407,1740856239476,-1027.29,0.00024657,2]
[354981409,1740856239487,-707.13,0.00024657,2]
[354981411,1740856239498,-500.0,0.00024657,2]
[354981413,1740856239508,-500.0,0.00024657,2]
[354981415,1740856239519,-151.0,0.00024657,7]
[354981417,1740856239529,-500.0,0.00024657,2]
[354981419,1740856239539,-500.0,0.00024657,2]
[354981421,1740856239549,-500.0,0.00024657,2]
[354981423,1740856239559,-1254.33,0.00024657,2]
[354981425,1740856239569,-151.0,0.00024657,7]